bitfinex-derivatives/quotes_ETHF0:USTF0_20250709
["timestamp","ask_amount","ask_price","bid_price","bid_amount"]
[1752021150385,0.6777,2604.3,2604.2,4.88035546]
[1752021150784,1.3494,2604.3,2604.2,4.88035546]
[1752021152584,2.11717,2604.3,2604.2,4.88035546]
[1752021152975,2.11717,2604.3,2604.2,5.86015546]
[1752021153384,1.3494,2604.3,2604.2,5.86015546]
[1752021153685,2.11717,2604.3,2604.2,5.86015546]
[1752021154488,1.3494,2604.3,2604.2,5.86015546]
[1752021154885,0.6717,2604.3,2604.2,5.86015546]
[1752021158584,0.6717,2604.3,2604.2,2.40567]
[1752021159787,0.6749,2604.5,2604.4,0.76774]
[1752021159987,0.76768,2604.6,2604.5,0.76771]
[1752021160288,1.39431326,2604.6,2604.5,2.09171]
[1752021160588,2.06601326,2604.6,2604.5,3.07151]
[1752021160885,1.39431326,2604.6,2604.5,3.07151]
[1752021161286,1.39431326,2604.6,2604.5,6.27931]
[1752021161487,3.9811176,2605.0,2604.9,0.76759]
[1752021161688,5.27550273,2605.0,2604.9,1.42569]
[1752021161984,4.60380273,2605.0,2604.9,1.42569]
[1752021162287,4.60380273,2605.0,2604.9,2.40549]
[1752021162481,5.27550273,2605.0,2604.9,2.40549]
[1752021162681,5.27550273,2605.0,2604.9,3.06069]
[1752021162682,4.60380273,2605.0,2604.9,3.06069]
[1752021163991,1.39600273,2605.0,2604.9,3.06069]
[1752021164191,0.0057576,2605.0,2604.9,3.06069]
[1752021164491,3.8827,2605.4,2605.3,0.76747]
[1752021164785,3.8827,2605.4,2605.3,0.6581]
[1752021164786,6.71118689,2605.4,2605.3,0.6581]
[1752021165085,5.84578089,2605.4,2605.0,0.9798]
[1752021165289,0.76749,2605.3,2605.1,0.76752]
[1752021165485,1.4392,2605.2,2605.1,0.76752]
[1752021165686,1.4392,2605.2,2605.1,1.42562]
[1752021166486,0.7675,2605.3,2605.2,0.7675]
[1752021166686,2.7982,2605.3,2605.2,0.7675]
[1752021166886,2.7982,2605.3,2605.2,1.4256]
[1752021167086,2.7982,2605.3,2605.2,0.7675]
[1752021167289,2.7982,2605.3,2605.2,1.4256]
[1752021167888,0.6717,2605.3,2605.2,1.4256]
[1752021168888,0.6717,2605.3,2605.2,2.4054]
[1752021169992,1.43917,2605.3,2605.2,1.4256]
[1752021170192,3.2078,2605.4,2605.2,1.6379]
[1752021170393,3.97525,2605.4,2605.3,0.6886]
[1752021170693,3.97525,2605.4,2604.9,1.3712]
[1752021170694,0.76753,2605.1,2605.0,0.9798]
[1752021170892,0.76753,2605.1,2605.0,2.3594]
[1752021171194,1.44653,2605.1,2605.0,3.12696]
[1752021171394,0.679,2605.1,2605.0,3.12696]
[1752021173892,1.44653,2605.1,2605.0,3.12696]
[1752021174194,0.679,2605.1,2605.0,3.12696]
[1752021178197,1.44653,2605.1,2605.0,3.12696]
[1752021180796,1.44653,2605.1,2605.0,1.3796]
[1752021180997,1.44653,2605.1,2605.0,1.45616]
[1752021181294,1.44653,2605.1,2605.0,1.3796]
[1752021181600,0.76756,2605.0,2604.9,0.76757]
[1752021181799,2.10686,2605.0,2604.9,0.76757]
[1752021182001,0.76759,2604.9,2604.8,0.76762]
[1752021182201,0.76759,2604.9,2604.8,1.45862]
[1752021182202,2.82839,2604.9,2604.8,1.45862]
[1752021182601,2.82839,2604.9,2604.8,0.691]
[1752021182799,2.82839,2604.9,2604.8,1.45862]
[1752021185894,2.82839,2604.9,2604.8,0.691]
[1752021186097,3.85709,2604.9,2604.8,0.691]
[1752021186597,0.76762,2604.8,2604.7,0.0057576]
[1752021186799,2.78132,2604.8,2604.7,0.6967576]
[1752021187000,2.78132,2604.8,2604.7,1.4644076]
[1752021187301,0.6603,2605.0,2604.9,0.76759]
[1752021187501,1.3393,2605.0,2604.9,0.76759]
[1752021189196,2.10686,2605.0,2604.9,0.76759]
[1752021189399,1.3393,2605.0,2604.9,0.76759]
[1752021190803,0.6603,2605.0,2604.9,2.46989]
[1752021191002,1.3393,2605.0,2604.9,2.46989]
[1752021192201,1.3393,2605.0,2604.9,5.92386065]
[1752021192600,1.3393,2605.0,2604.9,4.91256065]
[1752021192804,1.3393,2605.0,2604.9,5.92386065]
[1752021193003,1.3393,2605.0,2604.9,4.91256065]
[1752021193305,0.679,2605.0,2604.9,5.92386065]
[1752021193906,0.6608,2605.2,2605.1,0.76753]
[1752021194101,1.3398,2605.2,2605.1,2.46983]
[1752021194301,1.3398,2605.2,2605.1,1.45853]
[1752021194501,1.4283,2605.2,2605.1,1.45853]
[1752021194700,2.1073,2605.2,2605.1,1.45853]
[1752021195205,2.1073,2605.2,2605.1,0.691]
[1752021196407,2.1073,2605.2,2605.1,1.45853]
[1752021196704,1.4283,2605.2,2605.1,1.45853]
[1752021196905,1.4283,2605.2,2605.1,2.10203]
[1752021197116,2.1073,2605.2,2605.1,2.10203]
[1752021199708,0.679,2605.2,2605.1,3.11333]
[1752021201507,1.4465,2605.2,2605.1,3.11333]
[1752021201707,0.679,2605.2,2605.1,3.11333]
[1752021202708,0.6303,2605.4,2605.1,2.3458]
[1752021203010,0.6303,2605.4,2605.3,0.76747]
[1752021203206,2.67358276,2605.4,2605.3,1.40657]
[1752021203406,2.01398276,2605.4,2605.3,2.42837]
[1752021203607,2.78143276,2605.4,2605.3,2.42837]
[1752021203907,3.44103276,2605.4,2605.3,1.40657]
[1752021204111,2.78143276,2605.4,2605.3,1.40657]
[1752021204609,3.44103276,2605.4,2605.3,1.40657]
[1752021205009,3.44103276,2605.4,2605.3,0.6391]
[1752021205509,3.44103276,2605.4,2605.3,1.40657]
[1752021205704,3.44103276,2605.4,2605.3,0.6391]
[1752021206104,3.44103276,2605.4,2605.3,1.40657]
[1752021206913,2.78143276,2605.4,2605.3,1.40657]
[1752021207203,1.39775,2605.4,2605.3,1.40657]
[1752021207410,2.05735,2605.4,2605.3,2.42837]
[1752021207809,0.6596,2605.4,2605.3,2.42837]
[1752021208110,1.44158,2605.7,2605.6,0.76739]
[1752021208310,1.44158,2605.7,2605.6,1.40649]
[1752021208311,2.82483224,2605.7,2605.6,1.40649]
[1752021208811,3.48443224,2605.7,2605.6,1.40649]
[1752021209004,3.48443224,2605.7,2605.6,2.42829]
[1752021209805,3.48443224,2605.7,2605.6,1.6609]
[1752021210406,3.48443224,2605.7,2605.6,0.6391]
[1752021211003,0.76742,2605.5,2605.4,0.6915]
[1752021211204,0.76742,2605.5,2605.2,4.47577065]
[1752021211205,0.76745,2605.4,2605.2,4.47577065]
[1752021211407,0.76747,2605.3,2605.2,5.91975065]
[1752021211606,0.76747,2605.3,2605.2,3.10488]
[1752021211906,1.39356,2605.4,2605.3,0.76747]
[1752021212215,1.39356,2605.4,2605.3,1.40657]
[1752021212415,2.05316,2605.4,2605.3,1.40657]
[1752021212816,2.05316,2605.4,2605.3,2.42837]
[1752021214220,1.2857,2605.4,2605.3,2.42837]
[1752021214815,0.6661,2605.7,2605.3,1.6609]
[1752021215014,1.3253,2606.0,2605.6,1.29138089]
[1752021215208,2.14871263,2605.9,2605.8,1.29138089]
[1752021215414,0.76733,2605.8,2605.7,2.43284]
[1752021215619,0.76731,2605.9,2605.8,0.76731]
[1752021215820,1.43339,2606.0,2605.9,0.7673]
[1752021216019,3.47447072,2606.0,2605.9,0.7673]
[1752021216222,3.2078,2606.1,2606.0,0.76727]
[1752021216420,5.35595068,2606.1,2606.0,0.76727]
[1752021216927,4.63464,2606.1,2606.0,0.76727]
[1752021217527,3.8674,2606.1,2606.0,2.05865089]
[1752021217728,0.6596,2606.1,2606.0,2.05865089]
[1752021219126,3.97497,2606.4,2606.2,0.76718]
[1752021219324,0.6596,2606.3,2606.2,0.76718]
[1752021219628,3.2078,2606.4,2606.3,0.76718]
[1752021219829,3.8674,2606.4,2606.3,0.76718]
[1752021220025,4.63455,2606.4,2606.3,0.76718]
[1752021220425,1.42675,2606.4,2606.3,0.76718]
[1752021220727,0.76715,2606.4,2606.3,1.40628]
[1752021220928,1.42675,2606.4,2606.3,1.40628]
[1752021221129,1.42675,2606.4,2606.3,2.42808]
[1752021223524,0.6596,2606.4,2606.3,2.42808]
[1752021223728,0.6788,2606.5,2606.4,0.76715]
[1752021223928,0.6788,2606.5,2606.4,1.40625]
[1752021224130,2.10552,2606.5,2606.4,1.40625]
[1752021224730,1.44592,2606.5,2606.4,1.40625]
[1752021224933,2.10552,2606.5,2606.4,1.40625]
[1752021225234,2.10552,2606.5,2606.4,0.76715]
[1752021225432,0.76715,2606.4,2606.3,1.78897]
[1752021225934,1.42675,2606.4,2606.3,1.40627]
[1752021228036,0.76715,2606.4,2606.3,1.40627]
[1752021228237,1.44594,2606.5,2606.4,0.76715]
[1752021228433,2.10554,2606.5,2606.4,1.40625]
[1752021228638,0.76715,2606.4,2606.3,0.76717]
[1752021229037,2.76085,2606.4,2606.3,1.40627]
[1752021229239,1.44594,2606.5,2606.4,0.76715]
[1752021229436,2.10554,2606.5,2606.4,1.40625]
[1752021230939,0.76711,2606.6,2606.5,0.76712]
[1752021231135,1.3341,2606.7,2606.6,2.44719]
[1752021231136,1.3224,2606.7,2606.6,2.44719]
[1752021231332,0.76699,2607.0,2606.9,0.76699]
[1752021231531,1.43509,2607.0,2606.9,0.76699]
[1752021231736,0.767,2606.9,2606.8,0.76701]
[1752021232340,2.75999,2607.0,2606.9,0.767]
[1752021233030,2.75999,2607.0,2606.9,1.4198]
[1752021233231,0.767,2606.9,2606.7,0.76703]
[1752021233434,0.767,2606.9,2606.8,0.76703]
[1752021234438,2.75999,2607.0,2606.9,0.767]
[1752021235038,2.75999,2607.0,2606.9,0.6583]
[1752021235240,1.993,2607.0,2606.9,1.4253]
[1752021235540,2.75999,2607.0,2606.9,0.6583]
[1752021235941,0.76695,2607.1,2607.0,0.76697]
[1752021236240,1.43505,2607.1,2607.0,2.05835089]
[1752021236435,0.6641,2607.2,2607.0,2.05835089]
[1752021236436,0.6641,2607.2,2607.1,0.76694]
[1752021236738,1.43102,2607.2,2607.1,0.76694]
[1752021236935,2.09912,2607.2,2607.1,1.45244]
[1752021237141,2.09912,2607.2,2607.1,0.6855]
[1752021238342,2.09912,2607.2,2607.1,1.45244]
[1752021238836,0.76694,2607.1,2607.0,1.6907]
[1752021239035,2.62358089,2607.2,2607.0,0.6583]
[1752021239236,0.76697,2607.0,2606.9,0.76699]
[1752021239434,0.76697,2607.0,2606.9,0.6583]
[1752021240038,0.767,2606.9,2606.8,4.49918089]
[1752021240238,0.767,2606.9,2606.8,5.15748089]
[1752021240639,0.767,2606.9,2606.8,0.6583]
[1752021240939,5.12532,2606.9,2606.4,4.48637065]
[1752021241145,0.76715,2606.4,2606.3,4.13417065]
[1752021241441,0.76718,2606.3,2606.2,6.66177065]
[1752021241642,3.40098,2606.3,2606.2,3.45397065]
[1752021242034,7.65208,2606.3,2606.2,3.45397065]
[1752021242341,7.65208,2606.3,2606.0,0.0057576]
[1752021242342,0.76721,2606.2,2606.1,3.45397065]
[1752021242539,0.76724,2606.1,2606.0,3.45972825]
[1752021242738,2.47864,2606.1,2606.0,3.45972825]
[1752021242938,3.77694,2606.1,2606.0,3.45972825]
[1752021243341,3.77694,2606.1,2606.0,0.0057576]
[1752021244340,2.73364,2606.1,2606.0,0.6640576]
[1752021244741,0.76724,2606.1,2606.0,0.6640576]
[1752021245047,0.76724,2606.1,2606.0,1.6964576]
[1752021245247,1.43534,2606.1,2606.0,6.29119039]
[1752021245548,1.43534,2606.1,2606.0,5.25879039]
[1752021248248,1.43534,2606.1,2606.0,0.6640576]
[1752021249046,1.43534,2606.1,2606.0,5.25660203]
[1752021249247,1.43534,2606.1,2606.0,0.6640576]
[1752021249447,1.43534,2606.1,2606.0,4.10869751]
[1752021250250,1.43534,2606.1,2606.0,0.6640576]
[1752021250451,1.43534,2606.1,2606.0,1.4313276]
[1752021250647,0.6681,2606.1,2606.0,1.4313276]
[1752021250844,0.76717,2606.4,2606.0,1.6964576]
[1752021251051,0.76717,2606.4,2606.3,0.76718]
[1752021251247,0.76717,2606.4,2606.3,2.71686089]
[1752021251449,1.43527,2606.4,2606.3,2.71686089]
[1752021251747,1.43527,2606.4,2606.3,3.35186089]
[1752021251955,3.97491,2606.6,2606.4,0.76713]
[1752021252250,3.97491,2606.6,2606.5,2.71680089]
[1752021252251,4.64301,2606.6,2606.5,2.71680089]
[1752021252450,0.76711,2606.6,2606.5,2.71680089]
[1752021252751,1.43521,2606.6,2606.5,3.74920089]
[1752021253549,1.43521,2606.6,2606.5,2.98208089]
[1752021253947,1.43521,2606.6,2606.5,1.94968089]
[1752021259453,0.76715,2606.4,2606.3,1.40217]
[1752021259655,0.76715,2606.4,2606.3,2.06047]
[1752021259948,0.76715,2606.4,2606.3,3.09287]
[1752021260149,1.43525,2606.4,2606.3,3.35185089]
[1752021260351,1.40943,2606.5,2606.4,0.76715]
[1752021260552,2.04933,2606.5,2606.4,1.41085]
[1752021260752,1.40943,2606.5,2606.4,1.41085]
[1752021260953,2.04933,2606.5,2606.4,2.44325]
[1752021264151,1.2822,2606.5,2606.4,2.44325]
[1752021264353,2.04932,2606.5,2606.4,2.44325]
[1752021264554,2.04932,2606.5,2606.4,1.6761]
[1752021266158,2.04932,2606.5,2606.4,2.44325]
[1752021267459,2.04932,2606.5,2606.4,1.41085]
[1752021268155,2.04932,2606.5,2606.4,0.6437]
[1752021268458,2.04932,2606.5,2606.4,1.41085]
[1752021270563,0.76718,2606.3,2606.2,3.44463991]
[1752021270757,0.76718,2606.3,2606.1,3.44463991]
[1752021270758,0.76721,2606.2,2606.1,3.44463991]
[1752021270958,2.70071,2606.2,2606.1,4.08833991]
[1752021274365,2.70071,2606.2,2606.1,4.85557991]
[1752021278370,2.70071,2606.2,2606.1,1.41094]
[1752021279474,2.70071,2606.2,2606.1,0.6437]
[1752021279673,2.70071,2606.2,2606.1,1.41094]
[1752021279973,2.70071,2606.2,2606.1,0.6437]
[1752021280371,3.64521,2606.2,2606.1,3.44995367]
[1752021280571,0.76724,2606.1,2606.0,0.7730176]
[1752021280770,3.29704,2606.1,2606.0,4.86712119]
[1752021281168,3.29704,2606.1,2606.0,1.4167176]
[1752021281772,2.5298,2606.1,2606.0,2.4057176]
[1752021281972,1.2695,2606.1,2606.0,2.4057176]
[1752021282773,0.6399,2606.1,2606.0,2.4057176]
[1752021285174,0.6399,2606.1,2606.0,29.1356176]
[1752021285776,0.6399,2606.1,2606.0,30.42699849]
[1752021292082,1.40714,2606.1,2606.0,30.42699849]
[1752021292379,1.40714,2606.1,2606.0,26.7455576]
[1752021292573,1.40714,2606.1,2606.0,30.19544208]
[1752021292772,1.40714,2606.1,2606.0,4.10844208]
[1752021293175,1.40714,2606.1,2606.0,30.96271208]
[1752021293583,2.72904,2606.1,2606.0,30.96271208]
[1752021294787,2.72904,2606.1,2606.0,30.19544208]
[1752021296387,2.72904,2606.1,2606.0,30.96271208]
[1752021297089,2.72904,2606.1,2606.0,30.19544208]
[1752021297487,2.72904,2606.1,2606.0,30.96271208]
[1752021298989,2.72904,2606.1,2606.0,4.87571208]
[1752021299184,6.95004,2606.1,2606.0,0.0057576]
[1752021299389,11.95004,2606.1,2606.0,0.0057576]
[1752021299981,0.7673,2605.9,2605.8,3.44988448]
[1752021300181,0.7673,2605.9,2605.2,5.74341599]
[1752021300182,0.76733,2605.8,2605.7,3.44988448]
[1752021300388,0.76736,2605.7,2605.6,3.44988448]
[1752021300583,6.6768,2605.7,2605.5,3.44988448]
[1752021300789,1.9774,2605.6,2605.2,30.68054443]
[1752021300983,1.43107,2605.3,2605.2,5.24534443]
[1752021301190,1.43107,2605.3,2605.2,0.6528]
[1752021301191,2.44427,2605.3,2605.2,0.6528]
[1752021301392,2.44427,2605.3,2605.2,4.10212588]
[1752021301698,2.44427,2605.3,2605.2,3.44932588]
[1752021302192,3.02,2605.3,2605.0,30.30488588]
[1752021302392,3.0235,2605.2,2605.0,30.30488588]
[1752021302589,0.76753,2605.1,2605.0,30.30488588]
[1752021302790,1.43113,2605.1,2605.0,30.30488588]
[1752021302990,1.43113,2605.1,2605.0,30.95768588]
[1752021303291,1.43113,2605.1,2605.0,27.50836]
[1752021303292,0.76753,2605.1,2605.0,27.50836]
[1752021303493,2.77782,2605.2,2605.1,0.76753]
[1752021303996,2.6739,2605.2,2605.0,26.85755]
[1752021304196,1.3864,2605.1,2605.0,26.85755]
[1752021304487,1.3864,2605.1,2605.0,27.51035]
[1752021304893,2.05,2605.1,2605.0,27.51035]
[1752021305096,1.3864,2605.1,2605.0,27.51035]
[1752021305391,0.6671,2605.2,2605.1,0.76753]
[1752021305592,1.3307,2605.2,2605.1,1.42033]
[1752021306189,0.6671,2605.2,2605.1,1.42033]
[1752021306396,1.3307,2605.2,2605.1,1.42033]
[1752021307090,1.3307,2605.2,2605.1,3.75261089]
[1752021307295,0.6636,2605.2,2605.1,3.75261089]
[1752021308397,3.2078,2605.5,2605.4,0.76745]
[1752021308691,3.8714,2605.5,2605.4,3.75253089]
[1752021308899,3.2078,2605.5,2605.4,3.75253089]
[1752021309196,3.97513,2605.8,2605.7,0.76736]
[1752021309491,4.63873,2605.8,2605.7,0.6528]
[1752021309697,0.76738,2605.7,2605.6,0.76738]
[1752021309995,0.76738,2605.7,2605.6,1.42018]
[1752021310196,1.43098,2605.7,2605.6,2.05538]
[1752021310697,1.43098,2605.7,2605.6,1.288]
[1752021311199,1.43098,2605.7,2605.6,2.05539]
[1752021311401,1.43098,2605.7,2605.6,1.288]
[1752021312401,0.76742,2605.5,2605.4,26.102]
[1752021312603,1.43102,2605.5,2605.4,26.102]
[1752021312998,2.79522,2605.5,2605.4,0.6528]
[1752021315201,2.13162,2605.5,2605.4,0.6528]
[1752021315401,1.42071,2605.6,2605.5,0.76742]
[1752021315600,1.43101,2605.6,2605.5,2.46112]
[1752021315803,0.76741,2605.6,2605.5,2.46112]
[1752021316601,0.76737,2605.7,2605.6,0.76738]
[1752021316801,0.76737,2605.7,2605.6,1.40328]
[1752021317003,45.2626,2606.1,2605.7,0.76734]
[1752021317200,0.76736,2605.7,2605.6,2.69465089]
[1752021317401,0.76736,2605.7,2605.6,0.6359]
[1752021318000,1.43096,2605.7,2605.6,0.6528]
[1752021318399,3.43326,2605.7,2605.6,0.6528]
[1752021319204,0.76742,2605.5,2605.4,26.751]
[1752021319506,0.76742,2605.5,2605.4,27.4038]
[1752021319706,0.76742,2605.5,2605.4,28.17125]
[1752021320301,1.41032,2605.5,2605.4,28.17125]
[1752021320806,0.76741,2605.6,2605.5,0.7674]
[1752021321205,1.41031,2605.6,2605.5,0.7674]
[1752021321405,0.76742,2605.5,2605.4,2.06824]
[1752021321702,0.76742,2605.5,2605.4,1.3008]
[1752021321903,1.41032,2605.5,2605.4,1.3008]
[1752021322103,0.76742,2605.5,2605.4,2.06825]
[1752021322302,1.41032,2605.5,2605.4,1.3008]
[1752021322504,0.76742,2605.5,2605.4,1.3008]
[1752021322806,1.41032,2605.5,2605.4,2.06825]
[1752021324002,1.41032,2605.5,2605.4,3.06315]
[1752021324505,1.41032,2605.5,2605.4,2.2957]
[1752021326307,1.41032,2605.5,2605.4,1.3008]
[1752021328706,1.41032,2605.5,2605.4,2.2957]
[1752021329910,1.41032,2605.5,2605.4,1.3008]
[1752021330611,1.41032,2605.5,2605.4,2.2957]
[1752021331309,1.41032,2605.5,2605.4,1.3008]
[1752021331906,1.41032,2605.5,2605.4,2.2957]
[1752021332307,1.41032,2605.5,2605.4,1.3008]
[1752021333211,1.41032,2605.5,2605.4,2.2957]
[1752021333907,1.41032,2605.5,2605.4,1.3008]
[1752021334212,1.41032,2605.5,2605.4,5.74502588]
[1752021334807,1.41032,2605.5,2605.4,2.2957]
[1752021335111,1.41032,2605.5,2605.4,5.74502588]
[1752021335312,1.41032,2605.5,2605.4,4.75012588]
[1752021336312,1.41032,2605.5,2605.4,5.74502588]
[1752021337312,1.41032,2605.5,2605.4,4.75012588]
[1752021337515,1.41032,2605.5,2605.4,5.74502588]
[1752021338011,1.41032,2605.5,2605.4,6.51247588]
[1752021338613,1.41032,2605.5,2605.4,5.74502588]
[1752021338813,1.41032,2605.5,2605.4,4.09732588]
[1752021339007,4.61812,2605.5,2605.4,0.6759]
[1752021339213,4.61812,2605.5,2605.4,4.12522588]
[1752021340009,4.61812,2605.5,2605.4,0.6759]
[1752021345019,0.76745,2605.4,2605.3,3.44932588]
[1752021345314,0.76747,2605.3,2605.2,4.10282588]
[1752021345520,1.41037,2605.3,2605.2,4.77872588]
[1752021348109,2.69077,2605.3,2605.2,3.44932588]
[1752021348317,3.65527,2605.3,2605.2,3.44932588]
[1752021348516,0.7675,2605.2,2605.1,3.44932588]
[1752021348821,5.9857,2605.2,2605.1,4.12522588]
[1752021350122,5.3428,2605.2,2605.1,4.12522588]
[1752021350321,5.9857,2605.2,2605.1,4.12522588]
[1752021351324,5.9857,2605.2,2605.1,0.6759]
[1752021352021,0.76753,2605.1,2605.0,3.44932588]
[1752021352222,0.76753,2605.1,2604.9,3.44932588]
[1752021352223,0.76756,2605.0,2604.9,3.44932588]
[1752021352425,1.43916,2605.0,2604.9,4.12602588]
[1752021352620,2.73886,2605.0,2604.9,4.12602588]
[1752021354227,2.73886,2605.0,2604.9,0.6767]
[1752021359029,5.94666,2605.0,2604.9,0.6767]
[1752021360532,5.94666,2605.0,2604.9,1.44429]
[1752021360929,5.94666,2605.0,2604.9,0.6767]
[1752021362731,5.94666,2605.0,2604.9,1.44429]
[1752021363736,0.76762,2604.8,2604.7,0.76764]
[1752021363938,1.43922,2604.8,2604.7,1.44434]
[1752021364433,2.09592,2604.8,2604.7,1.44434]
[1752021364634,2.09592,2604.8,2604.7,1.44435]
[1752021364936,3.2078,2605.0,2604.9,0.76759]
[1752021365137,3.2078,2605.0,2604.9,2.44079]
[1752021366539,3.8794,2605.0,2604.9,2.44079]
[1752021367538,0.6716,2605.0,2604.9,2.44079]
[1752021367838,1.43916,2605.0,2604.9,2.44079]
[1752021368433,0.6716,2605.0,2604.9,2.44079]
[1752021369334,0.6567,2605.1,2605.0,0.76756]
[1752021369530,1.43913,2605.1,2605.0,2.44076]
[1752021369735,0.76753,2605.1,2605.0,2.44076]
[1752021369936,1.43913,2605.1,2605.0,0.6767]
[1752021370437,1.43913,2605.1,2605.0,1.44426]
[1752021375247,0.76759,2604.9,2604.8,4.88151588]
[1752021375541,0.76759,2604.9,2604.8,5.55821588]
[1752021375747,1.43919,2604.9,2604.8,5.55821588]
[1752021376147,0.6716,2604.9,2604.8,5.55821588]
[1752021376347,0.6716,2604.9,2604.8,3.10539]
[1752021376549,1.43919,2604.9,2604.8,3.10539]
[1752021377347,1.43919,2604.9,2604.8,1.3413]
[1752021378342,1.43919,2604.9,2604.8,3.10542]
[1752021379745,0.6716,2604.9,2604.8,3.10542]
[1752021380250,0.6716,2604.9,2604.8,6.55474588]
[1752021380449,1.43919,2604.9,2604.8,6.55474588]
[1752021382552,0.6716,2604.9,2604.8,6.55474588]
[1752021383953,1.43919,2604.9,2604.8,6.55474588]
[1752021385453,1.43919,2604.9,2604.8,4.79062588]
[1752021385653,2.79549,2604.9,2604.8,4.76832588]
[1752021385855,2.79549,2604.9,2604.8,0.6544]
[1752021387257,2.79549,2604.9,2604.8,1.42202]
[1752021387657,2.79549,2604.9,2604.8,5.85574588]
[1752021388057,1.43919,2604.9,2604.8,5.85574588]
[1752021389659,0.6716,2604.9,2604.8,7.14712677]
[1752021389861,1.41979,2605.0,2604.9,0.76759]
[1752021390056,2.07189,2605.0,2604.9,0.6544]
[1752021391563,2.07189,2605.0,2604.9,1.42199]
[1752021392460,0.6522,2605.0,2604.9,3.07709]
[1752021392655,1.3043,2605.0,2604.9,3.07709]
[1752021392860,0.6522,2605.0,2604.9,3.07709]
[1752021393161,1.3043,2605.0,2604.9,3.07709]
[1752021393764,2.07186,2605.0,2604.9,3.07709]
[1752021394165,1.3043,2605.0,2604.9,3.07709]
[1752021394360,2.07186,2605.0,2604.9,3.07709]
[1752021395864,2.07186,2605.0,2604.9,1.3251]
[1752021397064,2.07186,2605.0,2604.9,2.09269]
[1752021398368,2.07186,2605.0,2604.9,3.07709]
[1752021399365,1.3043,2605.0,2604.9,3.07709]
[1752021399568,3.2078,2605.2,2605.1,0.76753]
[1752021399867,4.6274,2605.2,2605.1,2.40633]
[1752021401066,4.6274,2605.2,2605.1,1.42193]
[1752021401461,4.6274,2605.2,2605.1,0.6544]
[1752021402164,4.6274,2605.2,2605.1,1.42193]
[1752021403164,1.4196,2605.2,2605.1,1.42193]
[1752021403864,1.4196,2605.2,2605.1,2.40633]
[1752021404169,0.6521,2605.2,2605.1,2.40633]
[1752021404469,1.4196,2605.2,2605.1,2.40633]
[1752021405370,0.6521,2605.2,2605.1,2.40633]
[1752021406069,1.3637,2605.4,2605.3,0.76747]
[1752021406269,1.3637,2605.4,2605.3,1.42187]
[1752021406270,2.16670657,2605.4,2605.3,1.42187]
[1752021406461,0.76744,2605.4,2605.3,1.42187]
[1752021406666,0.76744,2605.4,2605.3,2.40627]
[1752021406970,1.41954,2605.4,2605.3,2.40627]
[1752021408167,3.8359,2605.5,2605.4,0.76744]
[1752021408471,4.60332,2605.5,2605.4,2.40624]
[1752021408671,3.8359,2605.5,2605.4,2.40624]
[1752021408973,3.2078,2605.5,2605.4,2.40624]
[1752021410368,0.76737,2605.7,2605.6,0.76739]
[1752021410567,0.76737,2605.7,2605.6,1.42239]
[1752021410772,1.39557,2605.7,2605.6,0.655]
[1752021411274,1.39557,2605.7,2605.6,1.42239]
[1752021412769,1.39557,2605.7,2605.6,0.655]
[1752021414171,0.76739,2605.6,2605.5,0.6766]
[1752021414469,2.68819,2605.6,2605.5,0.6766]
[1752021414667,2.68819,2605.6,2605.5,1.3316]
[1752021414865,2.68819,2605.6,2605.4,0.76743]
[1752021414866,0.76744,2605.4,2605.2,3.44932588]
[1752021415066,1.39564,2605.4,2605.3,0.655]
[1752021415267,0.76747,2605.3,2605.2,3.44932588]
[1752021415467,2.69937,2605.3,2605.2,0.655]
[1752021416170,2.69937,2605.3,2605.2,1.4225]
[1752021416373,1.3037,2605.3,2605.2,1.4225]
[1752021416773,2.69937,2605.3,2605.2,1.4225]
[1752021417674,1.3037,2605.3,2605.2,1.4225]
[1752021417874,0.76747,2605.4,2605.3,0.76747]
[1752021418075,1.39567,2605.4,2605.3,1.42247]
[1752021419272,2.72807,2605.4,2605.3,1.42247]
[1752021419576,2.72807,2605.4,2605.3,0.655]
[1752021420780,0.7675,2605.2,2605.1,3.44932588]
[1752021420981,1.3957,2605.2,2605.1,3.44932588]
[1752021421374,0.76753,2605.1,2605.0,4.09102588]
[1752021421577,1.39573,2605.1,2605.0,4.74602588]
[1752021421978,0.76756,2605.0,2604.9,3.44932588]
[1752021422178,1.39576,2605.0,2604.9,4.10432588]
[1752021422574,0.76759,2604.9,2604.8,0.6641]
[1752021422779,2.03629,2604.9,2604.8,4.11342588]
[1752021422980,1.40809,2604.9,2604.8,5.53604588]
[1752021423180,2.03629,2604.9,2604.8,5.53604588]
[1752021423673,2.03629,2604.9,2604.8,6.49604588]
[1752021425285,2.03629,2604.9,2604.8,4.76842588]
[1752021425988,2.03629,2604.9,2604.8,1.3191]
[1752021426287,2.03629,2604.9,2604.8,2.2791]
[1752021426586,2.03629,2604.9,2604.8,3.04672]
[1752021427484,2.03629,2604.9,2604.8,6.49604588]
[1752021428789,2.03629,2604.9,2604.8,4.21694588]
[1752021429089,0.76762,2604.8,2604.7,3.44932588]
[1752021429290,1.39582,2604.8,2604.7,4.10432588]
[1752021429490,0.6405,2604.9,2604.7,4.10432588]
[1752021429491,1.40811,2604.9,2604.8,0.76762]
[1752021429686,2.03631,2604.9,2604.8,1.615]
[1752021429990,2.03631,2604.9,2604.8,2.38262]
[1752021430590,2.03631,2604.9,2604.8,3.67944221]
[1752021430891,1.2687,2604.9,2604.8,3.67944221]
[1752021431089,1.2877,2605.1,2605.0,0.76756]
[1752021431291,2.68345,2605.1,2605.0,2.71938221]
[1752021431690,3.97532,2605.2,2605.1,0.76753]
[1752021431990,3.2078,2605.2,2605.1,2.38253]
[1752021432493,3.9753,2605.2,2605.1,2.38253]